[Event "FIDE World Rapid-ch Open 2018"]
[White "Al Turky, Fahad A"]
[Black "Shubin, Kirill"]
[Site "St. Petersburg"]
[Round "10.100"]
[Annotator "NA"]
[Result "0-1"]
[Date "2018.12.27"]
[WhiteElo "1836"]
[BlackElo "2334"]
[PlyCount "128"]
[TimeControl "900+10"]

1. e4 {[%emt 0:0:0]} e6 {[%emt 0:0:0]} 2. d4 {[%emt 0:0:0]} d5 {[%emt 0:0:0]} 3. exd5 {[%emt 0:0:0]} exd5 {[%emt 0:0:0]} 4. Nf3 {[%emt 0:0:0]} Nc6 {[%emt 0:0:0]} 5. Bd3 {[%emt 0:0:4]} Nge7 {[%emt 0:0:0]} 6. 0-0 {[%emt 0:0:3]
} Bf5 {[%emt 0:0:0]} 7. Re1 {[%emt 0:0:30]} Bxd3 {[%emt 0:0:0]} 8. Qxd3 {[%emt 0:0:3]} Qd7 {[%emt 0:0:2]} 9. Bf4 {[%emt 0:0:22]} 0-0-0 {[%emt 0:0:4]} 10. Nbd2 {[%emt 0:1:43]} Ng6 {[%emt 0:0:9]} 11. Bg3 {[%emt 0:0:4]
} h5 {[%emt 0:0:15]} 12. h3 {[%emt 0:0:41]} h4 {[%emt 0:0:11]} 13. Bh2 {[%emt 0:0:1]} Rh5 {[%emt 0:0:27]} 14. Ne5 {[%emt 0:1:14]} Ncxe5 {[%emt 0:0:26]
} 15. dxe5 {[%emt 0:0:2]} Rf5 {[%emt 0:0:5]} 16. Nf3 {[%emt 0:4:16]
} Bc5 {[%emt 0:0:16]} 17. Nd4 {[%emt 0:1:7]} Bxd4 {[%emt 0:0:0]} 18. Qxd4 {[%emt 0:0:2]} Kb8 {[%emt 0:0:32]} 19. Rad1 {[%emt 0:0:4]} Qe6 {[%emt 0:0:25]} 20. c4 {[%emt 0:0:39]} c6 {[%emt 0:0:12]} 21. cxd5 {[%emt 0:0:46]
} Rxd5 {[%emt 0:0:5]} 22. Qa4 {[%emt 0:0:48]} Rg5 23. Rxd5 {[%emt 0:1:32]
} cxd5 {[%emt 0:1:42]} 24. Kh1 {[%emt 0:1:32]} Rh5 {[%emt 0:0:0]} 25. Qg4 {[%emt 0:1:8]} Rh7 {[%emt 0:0:37]} 26. Qg5 {[%emt 0:0:20]} Ne7 {[%emt 0:0:24]} 27. Rc1 {[%emt 0:0:35]} g6 {[%emt 0:0:58]} 28. Qf4 {[%emt 0:0:0]} Nf5 {[%emt 0:0:20]} 29. Qg5 {[%emt 0:0:18]} Rh8 {[%emt 0:0:12]} 30. Qd2 {[%emt 0:0:30]} Ne7 {[%emt 0:1:23]} 31. Qa5 {[%emt 0:0:29]} Nc6 {[%emt 0:0:7]
} 32. Qc5 {[%emt 0:0:13]} Rd8 {[%emt 0:0:3]} 33. b4 {[%emt 0:0:0]} Rd7 {[%emt 0:1:34]} 34. b5 Ne7 35. a4 {[%emt 0:0:44]} d4 {[%emt 0:0:0]} 36. a5 {[%emt 0:0:15]} d3 {[%emt 0:0:1]} 37. b6 {[%emt 0:0:14]} d2 {[%emt 0:0:11]
} 38. bxa7+ {[%emt 0:0:5]} Ka8 {[%emt 0:0:1]} 39. Rd1 {[%emt 0:0:8]
} Qb3 {[%emt 0:0:32]} 40. Rxd2 {[%emt 0:0:21]} Rxd2 {[%emt 0:0:0]} 41. Qxe7 {[%emt 0:0:5]} Rd1+ {[%emt 0:1:24]} 42. Bg1 {[%emt 0:0:1]
} Qb1 {[%emt 0:0:11]} 43. Qf8+ {[%emt 0:0:13]} Kxa7 {[%emt 0:0:2]} 44. Qc5+ {[%emt 0:0:3]} Ka6 {[%emt 0:0:26]} 45. Qc4+ {[%emt 0:0:35]} Qb5 {[%emt 0:0:0]} 46. Qxf7 {[%emt 0:0:11]} Qf1 {[%emt 0:0:24]} 47. Qe6+ {[%emt 0:0:11]
} Kxa5 {[%emt 0:0:9]} 48. Qa2+ {[%emt 0:0:4]} Kb6 {[%emt 0:0:16]} 49. Qe6+ {[%emt 0:0:12]} Ka7 {[%emt 0:0:19]} 50. Qa2+ {[%emt 0:0:2]} Qa6 {[%emt 0:0:0]} 51. Qc2 {[%emt 0:0:10]} Qa1 {[%emt 0:0:56]} 52. Qc5+ {[%emt 0:0:6]} b6 {[%emt 0:0:5]} 53. Qc7+ {[%emt 0:0:6]} Ka6 {[%emt 0:0:6]} 54. Qc8+ {[%emt 0:0:14]
} Kb5 {[%emt 0:1:36]} 55. Qe8+ {[%emt 0:0:4]} Kb4 {[%emt 0:0:0]} 56. Qe7+ {[%emt 0:0:17]} Ka5 {[%emt 0:0:15]} 57. Qa7+ {[%emt 0:0:3]} Kb5 {[%emt 0:0:1]} 58. Qxa1 {[%emt 0:0:20]} Rxa1 {[%emt 0:0:4]} 59. Kh2 {[%emt 0:0:22]
} Kc6 {[%emt 0:0:2]} 60. f4 {[%emt 0:0:1]} b5 {[%emt 0:0:5]
} 61. Be3 {[%emt 0:0:18]} b4 {[%emt 0:0:11]} 62. Bd4 {[%emt 0:0:6]} Rd1 {[%emt 0:0:3]
} 63. Bb2 {[%emt 0:0:14]} Kd5 {[%emt 0:0:8]} 64. g3 {[%emt 0:0:0]} Rd2+ {[%emt 0:0:2]} 0-1

[Event "FIDE World Rapid-ch Open 2018"]
[White "khayat, Abdullah F"]
[Black "Danielyan, Vahe"]
[Site "St. Petersburg"]
[Round "10.101"]
[Annotator "NA"]
[Result "0-1"]
[Date "2018.12.27"]
[WhiteElo "1723"]
[BlackElo "2220"]
[PlyCount "140"]
[TimeControl "900+10"]

1. d4 {[%emt 0:0:0]} Nf6 {[%emt 0:0:0]} 2. g3 {[%emt 0:0:0]} c5 {[%emt 0:0:0]} 3. c3 {[%emt 0:0:0]} g6 {[%emt 0:0:0]} 4. Bg2 {[%emt 0:0:0]} Bg7 {[%emt 0:0:0]} 5. e4 {[%emt 0:0:7]} 0-0 {[%emt 0:0:1]} 6. e5 {[%emt 0:0:0]} Ne8 {[%emt 0:0:2]} 7. f4 {[%emt 0:0:6]} cxd4 {[%emt 0:0:6]} 8. cxd4 {[%emt 0:0:1]} d6 {[%emt 0:0:1]} 9. Nf3 {[%emt 0:0:32]} dxe5 {[%emt 0:0:0]} 10. fxe5 {[%emt 0:0:17]} Nc6 {[%emt 0:0:1]} 11. 0-0 {[%emt 0:0:5]} Nc7 {[%emt 0:0:2]} 12. Nc3 {[%emt 0:0:33]} Bg4 {[%emt 0:0:3]} 13. Be3 {[%emt 0:1:21]
} Qd7 {[%emt 0:0:2]} 14. Qc2 {[%emt 0:2:2]} Bxf3 {[%emt 0:0:0]} 15. Bxf3 {[%emt 0:0:17]} Nxd4 {[%emt 0:0:1]} 16. Bxd4 {[%emt 0:0:3]} Qxd4+ {[%emt 0:0:1]} 17. Kh1 {[%emt 0:0:7]} Qxe5 {[%emt 0:0:26]} 18. Bxb7 {[%emt 0:0:10]} Rab8 {[%emt 0:0:1]} 19. Bg2 {[%emt 0:0:6]} Qa5 {[%emt 0:0:0]} 20. Rae1 {[%emt 0:0:52]} Rxb2 {[%emt 0:0:19]} 21. Qxb2 {[%emt 0:0:0]} Bxc3 {[%emt 0:0:1]} 22. Qe2 {[%emt 0:0:27]} Bxe1 {[%emt 0:0:3]} 23. Rxe1 {[%emt 0:0:3]} Ne6 {[%emt 0:0:3]} 24. Rd1 {[%emt 0:0:19]} Rd8 {[%emt 0:0:2]
} 25. Rf1 {[%emt 0:0:44]} Qd2 {[%emt 0:0:45]} 26. Qf3 {[%emt 0:0:0]} Rf8 {[%emt 0:0:26]} 27. Qb3 {[%emt 0:1:0]} Nc5 {[%emt 0:0:17]} 28. Qa3 {[%emt 0:0:43]} Nd3 {[%emt 0:0:16]} 29. Qxa7 {[%emt 0:0:27]} e5 {[%emt 0:0:58]
} 30. a4 {[%emt 0:1:18]} Qe2 {[%emt 0:0:35]} 31. Kg1 {[%emt 0:0:0]} e4 {[%emt 0:0:9]} 32. a5 {[%emt 0:4:4]} e3 {[%emt 0:0:3]} 33. Qd4 {[%emt 0:0:20]} Qd2 {[%emt 0:0:20]} 34. Be4 {[%emt 0:0:11]} e2 {[%emt 0:0:0]} 35. Qxd3 {[%emt 0:0:8]} exf1=Q+ {[%emt 0:0:16]} 36. Kxf1 {[%emt 0:0:0]} Qxa5 {[%emt 0:0:14]} 37. Kg2 {[%emt 0:0:17]} Rd8 {[%emt 0:0:11]} 38. Qb1 {[%emt 0:0:9]} Rd2+ {[%emt 0:0:5]} 39. Kg1 {[%emt 0:0:15]} Qa7+ {[%emt 0:0:11]
} 40. Kh1 {[%emt 0:0:4]} Rd8 {[%emt 0:0:14]} 41. Bg2 Qd4 {[%emt 0:0:7]
} 42. h4 {[%emt 0:0:26]} Qd1+ {[%emt 0:0:3]} 43. Qxd1 {[%emt 0:0:1]
} Rxd1+ {[%emt 0:0:1]} 44. Kh2 {[%emt 0:0:2]} Kg7 {[%emt 0:0:0]} 45. Kh3 {[%emt 0:0:2]} f5 {[%emt 0:0:2]} 46. Bf3 {[%emt 0:0:3]} Rd2 {[%emt 0:0:1]} 47. Bb7 {[%emt 0:0:4]} Kf6 {[%emt 0:0:1]} 48. Bc6 {[%emt 0:0:5]
} h6 {[%emt 0:0:1]} 49. Ba8 {[%emt 0:0:3]} Ke5 {[%emt 0:0:0]} 50. Bb7 {[%emt 0:0:3]} Rb2 {[%emt 0:0:1]} 51. Ba8 {[%emt 0:0:2]} Rb3 {[%emt 0:0:2]} 52. Kg2 {[%emt 0:0:2]} f4 {[%emt 0:0:2]} 53. gxf4+ {[%emt 0:0:5]
} Kxf4 {[%emt 0:0:1]} 54. Bd5 {[%emt 0:0:8]} Ra3 {[%emt 0:0:0]} 55. Bf7 {[%emt 0:0:3]} Rc3 {[%emt 0:0:11]} 56. Kf2 {[%emt 0:0:24]} Rc6 {[%emt 0:0:2]} 57. Kg2 {[%emt 0:0:11]} Kg4 {[%emt 0:0:2]} 58. Be8 {[%emt 0:0:5]
} Rd6 {[%emt 0:0:8]} 59. Bb5 {[%emt 0:1:2]} Kxh4 {[%emt 0:0:0]} 60. Kf2 {[%emt 0:0:2]} g5 {[%emt 0:0:1]} 61. Kg2 g4 62. Kh2 {[%emt 0:0:0]} Rd2+ {[%emt 0:0:1]} 63. Kg1 Kg3 64. Kf1 {[%emt 0:0:4]} h5 {[%emt 0:0:0]} 65. Ke1 {[%emt 0:0:1]} Rb2 {[%emt 0:0:0]} 66. Bc6 {[%emt 0:0:3]} h4 {[%emt 0:0:1]} 67. Kd1 {[%emt 0:0:1]} h3 {[%emt 0:0:1]} 68. Kc1 {[%emt 0:0:2]
} Rg2 {[%emt 0:0:0]} 69. Kd1 {[%emt 0:0:2]} h2 {[%emt 0:0:0]} 70. Bxg2 {[%emt 0:0:7]} Kxg2 {[%emt 0:0:1]} 0-1